bitfinex-derivatives/quotes_BTCF0:USTF0_20251210
["timestamp","ask_amount","ask_price","bid_price","bid_amount"]
[1765372599390,2.91e-06,92087.0,92086.0,0.60684703]
[1765372599589,2.91e-06,92087.0,92086.0,0.52893766]
[1765372599989,2.91e-06,92087.0,92086.0,0.60684623]
[1765372600386,2.91e-06,92087.0,92086.0,0.52893766]
[1765372601297,2.91e-06,92087.0,92086.0,0.60679855]
[1765372602405,2.91e-06,92087.0,92086.0,0.52893766]
[1765372605093,0.08681291,92087.0,92086.0,0.12893766]
[1765372607205,0.08681291,92087.0,92086.0,0.18730914]
[1765372607792,0.08681291,92087.0,92086.0,0.12893766]
[1765372610106,0.08676714,92087.0,92086.0,0.12893766]
[1765372611014,0.08676714,92087.0,92086.0,0.48973766]
[1765372611203,0.08676714,92087.0,92086.0,0.54810914]
[1765372611405,0.08676714,92087.0,92086.0,0.03316916]
[1765372611709,0.59068714,92087.0,92086.0,0.03316916]
[1765372612106,0.95148714,92087.0,92086.0,0.03316916]
[1765372612898,0.95248714,92087.0,92086.0,0.03016916]
[1765372613196,0.95348714,92087.0,92086.0,0.03016916]
[1765372621606,0.95348714,92087.0,92077.0,0.00632]
[1765372621607,0.0751805,92078.0,92077.0,0.00632]
[1765372622225,0.7967805,92078.0,92077.0,0.00632]
[1765372627116,1.3007805,92078.0,92077.0,0.00632]
[1765372627916,0.5791805,92078.0,92077.0,0.00632]
[1765372628111,1.3007805,92078.0,92077.0,0.00632]
[1765372638323,1.3007805,92078.0,92077.0,0.04892]
[1765372638830,1.3007805,92078.0,92077.0,0.00632]
[1765372639323,1.3007805,92078.0,92077.0,0.0379864]
[1765372644935,1.3007805,92078.0,92077.0,0.1255564]
[1765372645737,0.7967805,92078.0,92077.0,0.1255564]
[1765372645942,1.3008605,92078.0,92077.0,0.1255564]
[1765372646327,1.3008605,92078.0,92077.0,0.0379864]
[1765372647332,1.3008605,92078.0,92077.0,0.0805864]
[1765372647533,1.3008605,92078.0,92077.0,0.0379864]
[1765372648342,1.3008605,92078.0,92077.0,0.06718805]
[1765372649141,0.5792605,92078.0,92077.0,0.06718805]
[1765372649337,1.3008605,92078.0,92077.0,0.0379864]
[1765372651338,1.3008605,92078.0,92077.0,0.0801564]
[1765372651537,1.3008605,92078.0,92077.0,0.1237964]
[1765372654735,1.3008605,92078.0,92077.0,0.0379864]
[1765372659067,1.3008605,92078.0,92077.0,0.1237964]
[1765372660169,0.5792605,92078.0,92077.0,0.1237964]
[1765372660358,1.3008605,92078.0,92077.0,0.1237964]
[1765372660970,0.42512,92078.0,92077.0,0.1237964]
[1765372661269,0.9292,92078.0,92077.0,0.1237964]
[1765372662263,0.9292,92078.0,92077.0,0.18244106]
[1765372665371,0.9400605,92078.0,92077.0,0.1237964]
[1765372670261,0.9292,92078.0,92077.0,0.1237964]
[1765372671455,0.9292,92078.0,92077.0,0.134657]
[1765372671660,0.89704,92078.0,92077.0,0.134657]
[1765372671869,0.93027,92078.0,92077.0,0.134657]
[1765372675776,0.93027,92078.0,92077.0,0.19330166]
[1765372677276,0.93027,92078.0,92077.0,0.134657]
[1765372678263,0.89696,92078.0,92077.0,0.134657]
[1765372678567,0.9303,92078.0,92077.0,0.134657]
[1765372679877,0.8648,92078.0,92077.0,0.134657]
[1765372680073,0.89815,92078.0,92077.0,0.134657]
[1765372680265,0.9315,92078.0,92077.0,0.134657]
[1765372681274,0.9315,92078.0,92077.0,0.19325259]
[1765372683382,0.9315,92078.0,92077.0,0.134657]
[1765372685680,0.39423,92091.0,92090.0,0.0977191]
[1765372685875,0.00016291,92096.0,92095.0,0.0977185]
[1765372686071,0.06702291,92096.0,92095.0,0.1293849]
[1765372686869,0.03359291,92096.0,92095.0,0.1293849]
[1765372687071,0.00016291,92096.0,92095.0,0.1293849]
[1765372689183,0.00016291,92096.0,92095.0,0.1303849]
[1765372689480,0.00016291,92096.0,92095.0,0.1313849]
[1765372689687,0.06709291,92096.0,92095.0,0.1313849]
[1765372689883,0.06709291,92096.0,92095.0,0.1303849]
[1765372690085,0.03360291,92096.0,92095.0,0.1313849]
[1765372694190,0.06710291,92096.0,92095.0,0.1313849]
[1765372694694,0.03360291,92096.0,92095.0,0.1313849]
[1765372695393,0.06715291,92096.0,92095.0,0.1313849]
[1765372700095,0.06715291,92096.0,92095.0,0.10292697]
[1765372700295,0.06715291,92096.0,92095.0,0.0445249]
[1765372700497,0.06715291,92096.0,92095.0,0.1339549]
[1765372700898,0.06715291,92096.0,92095.0,0.0445249]
[1765372702395,0.06715291,92096.0,92095.0,0.0891049]
[1765372702592,0.06715291,92096.0,92095.0,0.1339549]
[1765372706591,0.00016291,92096.0,92095.0,0.1339549]
[1765372707098,0.06734291,92096.0,92095.0,0.1339549]
[1765372707400,0.06734291,92096.0,92095.0,0.19235697]
[1765372707599,0.06734291,92096.0,92095.0,0.1339549]
[1765372707991,0.06734291,92096.0,92095.0,0.19235697]
[1765372709292,0.06734291,92096.0,92095.0,0.1339549]
[1765372710504,0.06734291,92096.0,92095.0,0.19245332]
[1765372711097,0.06734291,92096.0,92095.0,0.1339549]
[1765372711297,0.07820131,92096.0,92095.0,0.1339549]
[1765372717224,0.01102131,92096.0,92095.0,0.1339549]
[1765372717727,0.04432131,92096.0,92095.0,0.1339549]
[1765372718026,0.07762131,92096.0,92095.0,0.1230964]
[1765372719524,0.07762131,92096.0,92095.0,0.1339549]
[1765372722530,0.07762131,92096.0,92095.0,0.1230964]
[1765372724133,0.07762131,92096.0,92095.0,0.0336664]
[1765372724925,0.07762131,92096.0,92095.0,0.0760364]
[1765372726735,0.07762131,92096.0,92095.0,0.1204864]
[1765372729330,0.43842131,92096.0,92095.0,0.1204864]
[1765372732730,0.40512131,92096.0,92095.0,0.1204864]
[1765372733033,0.04432131,92096.0,92095.0,0.1204864]
[1765372733935,0.07731131,92096.0,92095.0,0.1204864]
[1765372740742,0.07731131,92096.0,92095.0,0.03335316]
[1765372740937,0.07731131,92096.0,92095.0,0.12313316]
[1765372741131,0.07731131,92096.0,92095.0,0.03335316]
[1765372741538,0.07731131,92096.0,92095.0,0.12313316]
[1765372741734,0.07731131,92096.0,92095.0,0.03335316]
[1765372742343,0.07731131,92096.0,92095.0,0.07736316]
[1765372742845,0.07731131,92096.0,92095.0,0.12313316]
[1765372751643,0.43811131,92096.0,92095.0,0.12313316]
[1765372753047,0.40512131,92096.0,92095.0,0.12313316]
[1765372753248,0.43775131,92096.0,92095.0,0.12313316]
[1765372760662,0.07695131,92096.0,92095.0,0.12313316]
[1765372769077,0.07695131,92096.0,92095.0,0.12293762]
[1765372770577,0.07695131,92096.0,92095.0,0.12193762]
[1765372770975,0.07695131,92096.0,92095.0,0.12093762]
[1765372784886,0.07695131,92096.0,92095.0,0.12191994]
[1765372786775,0.07695131,92096.0,92095.0,0.13277844]
[1765372796702,0.04432131,92096.0,92095.0,0.13277844]
[1765372796995,0.07520131,92096.0,92095.0,0.13277844]
[1765372798396,0.01102131,92096.0,92095.0,0.13277844]
[1765372798894,0.07516131,92096.0,92095.0,0.13277844]
[1765372800092,0.00016291,92096.0,92095.0,0.13277844]
[1765372800597,0.03221291,92096.0,92095.0,0.13277844]
[1765372801185,0.00016291,92096.0,92095.0,0.13277844]
[1765372801391,0.43023195,92101.0,92100.0,0.1219079]
[1765372801594,0.40224378,92101.0,92100.0,0.51484784]
[1765372802796,0.00016291,92110.0,92109.0,0.0960369]
[1765372803099,0.00016291,92110.0,92109.0,0.12817684]
[1765372804093,0.00016291,92110.0,92109.0,0.5671107]
[1765372804288,0.00016291,92110.0,92109.0,0.48897684]
[1765372806208,0.08854291,92110.0,92109.0,0.48897684]
[1765372807108,0.04442291,92110.0,92109.0,0.48897684]
[1765372807610,0.00016291,92110.0,92109.0,0.48897684]
[1765372809512,0.04442291,92110.0,92109.0,0.48897684]
[1765372810214,0.04442291,92110.0,92109.0,0.12817684]
[1765372810710,0.00016291,92110.0,92109.0,0.12817684]
[1765372813011,0.00108561,92115.0,92114.0,0.0976263]
[1765372813211,0.40517,92131.0,92130.0,0.0976244]
[1765372813406,0.3716543,92131.0,92130.0,0.12976434]
[1765372813811,0.4160243,92131.0,92130.0,0.12976434]
[1765372814014,0.4604743,92131.0,92130.0,0.12976434]
[1765372815418,0.4614743,92131.0,92130.0,0.12976434]
[1765372815617,0.4644743,92131.0,92130.0,0.12976434]
[1765372816317,0.4614743,92131.0,92130.0,0.12976434]
[1765372816517,0.4624743,92131.0,92130.0,0.12976434]
[1765372817420,0.45162,92131.0,92130.0,0.12976434]
[1765372817610,0.002,92131.0,92130.0,0.12976434]
[1765372819827,0.001,92131.0,92130.0,0.12976434]
[1765372820708,0.09006812,92140.0,92139.0,0.0976233]
[1765372820909,0.09006812,92140.0,92139.0,0.12976324]
[1765372822023,0.09106812,92140.0,92139.0,0.12976324]
[1765372822220,0.00224812,92140.0,92139.0,0.12976324]
[1765372822424,0.00424812,92140.0,92139.0,0.12976324]
[1765372823328,0.3608,92148.0,92139.0,0.12976324]
[1765372823329,0.3608,92148.0,92147.0,0.0976224]
[1765372823621,0.1556991,92160.0,92158.0,0.097621]
[1765372823622,0.099671,92159.0,92158.0,0.097621]
[1765372823814,0.04437,92159.0,92158.0,0.12976094]
[1765372824012,0.50364,92163.0,92162.0,0.0976206]
[1765372824013,0.59246,92163.0,92162.0,0.0976206]
[1765372824230,0.59246,92163.0,92162.0,0.12976054]
[1765372825527,0.15586191,92172.0,92171.0,0.08677]
[1765372825712,0.08898281,92172.0,92171.0,0.11890994]
[1765372826320,0.09983221,92172.0,92171.0,0.11890994]
[1765372826620,0.09983221,92172.0,92160.0,0.02741]
[1765372826621,0.0996712,92157.0,92156.0,0.08677]
[1765372826822,0.0996712,92157.0,92156.0,0.11830653]
[1765372827327,0.08882,92157.0,92156.0,0.11830653]
[1765372827524,0.3608,92163.0,92156.0,0.11830653]
[1765372827525,0.04437,92163.0,92162.0,0.0976206]
[1765372827827,0.2445191,92166.0,92165.0,0.1250303]
[1765372828027,0.08882,92166.0,92165.0,0.15656683]
[1765372828834,0.08882,92166.0,92165.0,0.14571653]
[1765372830237,0.08767,92166.0,92165.0,0.14571653]
[1765372830934,0.04437,92166.0,92165.0,0.14571653]
[1765372831225,0.08767,92166.0,92165.0,0.14571653]
[1765372831433,0.00016281,92172.0,92171.0,0.08819]
[1765372831729,0.44867,92173.0,92172.0,0.08819]
[1765372831929,0.44867,92173.0,92172.0,0.11972653]
[1765372832429,0.08787,92173.0,92172.0,0.11972653]
[1765372832625,0.60452799,92182.0,92181.0,0.0990384]
[1765372832831,0.08802889,92182.0,92181.0,0.13054912]
[1765372835235,0.08802889,92182.0,92181.0,0.11970072]
[1765372838032,0.09887719,92182.0,92181.0,0.03151072]
[1765372838637,0.09887719,92182.0,92181.0,0.11970072]
[1765372839432,0.08802889,92182.0,92181.0,0.11970072]
[1765372844130,0.08802889,92182.0,92181.0,0.08819]
[1765372844331,0.08802889,92182.0,92181.0,0.1487997]
[1765372846236,0.08802889,92182.0,92181.0,0.11971087]
[1765372848343,0.08802889,92182.0,92181.0,0.15858113]
[1765372848836,0.00015889,92182.0,92181.0,0.11971087]
[1765372849044,0.04472889,92182.0,92181.0,0.11971087]
[1765372850339,0.08802889,92182.0,92181.0,0.11971087]
[1765372850543,0.08802889,92182.0,92181.0,0.17796679]
[1765372850736,0.08802889,92182.0,92181.0,0.11971087]
[1765372850938,0.04472889,92182.0,92181.0,0.11971087]
[1765372851335,0.04472889,92182.0,92181.0,0.12071087]
[1765372851536,0.00015889,92182.0,92181.0,0.12071087]
[1765372851739,0.08802889,92182.0,92181.0,0.12071087]
[1765372851938,0.00015889,92182.0,92181.0,0.12071087]
[1765372852738,0.00015889,92182.0,92181.0,0.48151087]
[1765372853236,0.08808715,92193.0,92192.0,0.0990371]
[1765372853430,0.04478715,92193.0,92192.0,0.13055797]
[1765372853636,0.00021715,92193.0,92192.0,0.49135797]
[1765372853837,0.04478715,92193.0,92192.0,0.5690997]
[1765372854332,0.00021715,92193.0,92192.0,0.49135797]
[1765372855240,0.44867,92206.0,92205.0,0.0990356]
[1765372855545,0.08895443,92215.0,92214.0,0.0990345]
[1765372855734,0.08895443,92215.0,92214.0,0.56903521]
[1765372855936,0.08895443,92215.0,92214.0,0.49135537]
[1765372856136,0.3608,92227.0,92225.0,0.0354032]
[1765372856444,0.44867,92227.0,92226.0,0.08974108]
[1765372856636,0.44867,92227.0,92226.0,0.03152087]
[1765372856943,0.44867,92227.0,92226.0,0.14675087]
[1765372857144,0.15248725,92227.0,92226.0,0.11971087]
[1765372857446,0.11444,92232.0,92231.0,0.0108425]
[1765372857646,0.11444,92232.0,92231.0,0.04236337]
[1765372857839,0.11444,92232.0,92231.0,0.40316337]
[1765372858039,0.1252824,92232.0,92231.0,0.39232087]
[1765372858245,0.1252824,92232.0,92231.0,0.03152087]
[1765372858948,0.1252824,92232.0,92231.0,8.7e-07]
[1765372859134,0.1252824,92232.0,92231.0,0.02906264]
[1765372859443,0.098253,92227.0,92226.0,0.03875773]
[1765372859658,0.08741,92226.0,92225.0,0.3608]
[1765372860545,0.0108445,92214.0,92200.0,0.08838]
[1765372860747,0.08741,92201.0,92200.0,0.0108461]
[1765372860943,0.08741,92185.0,92184.0,0.08893]
[1765372861145,0.08741,92185.0,92184.0,0.821378]
[1765372862252,0.08741,92185.0,92184.0,0.825378]
[1765372863450,0.08757242,92194.0,92193.0,0.099777]
[1765372863654,0.08757242,92194.0,92193.0,0.010847]
[1765372864154,0.08757242,92194.0,92193.0,0.099777]
[1765372865248,0.08757242,92194.0,92193.0,0.09193]
[1765372865450,0.08757242,92194.0,92193.0,0.003]
[1765372866152,0.08757242,92194.0,92193.0,0.005]
[1765372869749,0.08757242,92194.0,92193.0,0.09393]
[1765372869949,0.00016242,92194.0,92193.0,0.09393]
[1765372870361,0.00016242,92194.0,92193.0,0.45473]
[1765372871247,0.00016242,92194.0,92193.0,0.48558855]
[1765372872254,0.04563242,92194.0,92193.0,0.48558855]
[1765372872860,0.00016242,92194.0,92193.0,0.48558855]
[1765372873064,0.04113242,92194.0,92193.0,0.48558855]
[1765372873361,0.07902242,92194.0,92193.0,0.48558855]
[1765372873864,0.07902242,92194.0,92193.0,0.39665855]
[1765372874446,0.07902242,92194.0,92193.0,0.39465855]
[1765372874646,0.07902242,92194.0,92193.0,0.39665855]
[1765372875064,0.07902242,92194.0,92193.0,0.39365855]
[1765372875252,0.07902242,92194.0,92193.0,0.39565855]
[1765372875449,0.04113242,92194.0,92193.0,0.47415855]
[1765372875758,0.00016242,92194.0,92193.0,0.47415855]
[1765372876159,0.00016242,92194.0,92193.0,0.47215855]
[1765372876862,0.00016242,92194.0,92193.0,0.47015855]
[1765372877756,0.00016242,92194.0,92193.0,0.47215855]
[1765372879163,0.04113242,92194.0,92193.0,0.47415855]
[1765372879359,0.00016242,92194.0,92193.0,0.47415855]
[1765372879761,0.5151246,92213.0,92193.0,0.47415855]
[1765372879762,0.50428,92213.0,92212.0,0.0108447]
[1765372879963,0.40177,92217.0,92216.0,0.1119043]
[1765372880264,0.04097,92217.0,92216.0,0.50356285]
[1765372880464,0.07886,92217.0,92216.0,0.50356285]
[1765372883355,0.04097,92217.0,92216.0,0.50356285]
[1765372883868,0.07886,92217.0,92216.0,0.50356285]
[1765372884168,0.07886,92217.0,92216.0,0.49271855]
[1765372884353,0.0518142,92217.0,92216.0,0.50356285]
[1765372884755,0.0897035,92223.0,92222.0,0.0785]
[1765372884966,0.0897035,92223.0,92222.0,0.10935855]
[1765372885863,0.0897035,92223.0,92222.0,0.03085855]
[1765372886665,0.0897035,92223.0,92222.0,0.10935855]
[1765372888966,0.0897035,92223.0,92222.0,0.03085855]
[1765372890373,0.0897035,92223.0,92222.0,0.11445855]
[1765372890672,0.0897035,92223.0,92222.0,0.07643855]
[1765372891067,0.0975546,92213.0,92211.0,0.03880977]
[1765372891266,0.08671,92208.0,92207.0,0.00016272]
[1765372891471,0.08671,92208.0,92207.0,0.08376272]
[1765372892473,0.0108448,92212.0,92211.0,0.1195449]
[1765372892770,0.0566248,92212.0,92211.0,0.1195449]
[1765372892974,0.5499,92217.0,92216.0,0.0836]
[1765372893174,0.59083,92217.0,92216.0,0.0836]
[1765372893674,0.3608,92219.0,92218.0,0.1087]
[1765372894076,0.59099,92223.0,92222.0,0.0944436]
[1765372894279,0.50428,92223.0,92222.0,0.4552436]
[1765372894577,0.55006,92223.0,92222.0,0.4552436]
[1765372895163,0.50428,92223.0,92222.0,0.4552436]
[1765372895976,0.55006,92223.0,92222.0,0.4552436]
[1765372896278,0.50428,92223.0,92222.0,0.4552436]
[1765372896779,0.59099,92223.0,92222.0,0.4552436]
[1765372897775,0.6018334,92223.0,92222.0,0.4444]
[1765372897977,0.59099,92223.0,92222.0,0.4444]
[1765372898378,0.6018334,92223.0,92222.0,0.4444]
[1765372899480,0.59099,92223.0,92222.0,0.4444]
[1765372900270,0.59099,92223.0,92222.0,0.48320977]
[1765372900676,0.55006,92223.0,92222.0,0.48320977]
[1765372900880,0.59099,92223.0,92222.0,0.48320977]
[1765372903083,0.59099,92223.0,92222.0,0.51413089]
[1765372904375,0.6018334,92223.0,92222.0,0.47532112]
[1765372904577,0.59099,92223.0,92222.0,0.47532112]
[1765372905288,0.59079,92238.0,92237.0,0.0944418]
[1765372905583,0.59079,92238.0,92237.0,0.08734292]
[1765372905783,0.59079,92238.0,92237.0,0.12536292]
[1765372906485,0.59079,92238.0,92237.0,0.11452112]
[1765372908282,0.50408,92238.0,92237.0,0.11452112]
[1765372908782,0.59083,92251.0,92250.0,0.0836]
[1765372908982,0.59083,92251.0,92250.0,0.11452112]
[1765372908983,0.08671,92251.0,92250.0,0.11452112]
[1765372909493,0.08671,92251.0,92250.0,0.07650112]
[1765372909784,0.08671,92251.0,92250.0,0.11452112]
[1765372910484,0.08671,92251.0,92250.0,0.11441391]
[1765372911692,0.03671,92251.0,92250.0,0.11441391]
[1765372911991,0.07557,92251.0,92250.0,0.11441391]
[1765372912287,0.42575,92257.0,92256.0,0.0836]
[1765372912484,0.06495,92257.0,92256.0,0.47521391]
[1765372913188,0.3608,92289.0,92264.0,0.0944386]
[1765372913389,0.08779384,92265.0,92264.0,0.48599573]
[1765372913888,0.00108384,92265.0,92264.0,0.48599573]
[1765372914788,0.00108384,92265.0,92264.0,0.52471464]
[1765372915182,0.08779384,92265.0,92264.0,0.52471464]
[1765372915382,0.08779384,92265.0,92264.0,0.47515713]
[1765372915894,0.08779384,92265.0,92264.0,0.4444]
[1765372916286,0.08779384,92265.0,92264.0,0.47508202]
[1765372916491,0.08779384,92265.0,92264.0,0.4444]
[1765372917279,0.59203384,92265.0,92254.0,0.3608]
[1765372917489,0.0975496,92256.0,92255.0,0.03066984]
[1765372917684,0.09402,92250.0,92249.0,0.0564203]
[1765372917883,0.09402,92250.0,92249.0,0.13406542]
[1765372918284,0.04578,92250.0,92249.0,0.13406542]
[1765372918791,0.09402,92250.0,92249.0,0.13406542]
[1765372920784,0.1103696,92256.0,92255.0,0.1078897]
[1765372921396,0.1103696,92256.0,92255.0,0.13856069]
[1765372922584,0.1103696,92256.0,92255.0,0.12772099]
[1765372923193,0.4711696,92256.0,92255.0,0.03067099]
[1765372923893,0.4711696,92256.0,92255.0,0.12772099]
[1765372924892,0.4711696,92256.0,92255.0,0.03067099]
[1765372925194,0.4711696,92256.0,92247.0,0.00016262]
[1765372925195,0.1075405,92248.0,92247.0,0.00016262]
[1765372925401,0.9725005,92248.0,92247.0,0.03085807]
[1765372925590,0.9725005,92248.0,92247.0,0.00016262]
[1765372926400,0.9725005,92248.0,92247.0,0.09721262]
[1765372926894,0.50416,92248.0,92247.0,0.12791361]
[1765372927095,0.3608,92256.0,92247.0,0.12791361]
[1765372927096,0.3608,92256.0,92255.0,0.1078897]
[1765372927298,0.74816184,92260.0,92259.0,0.1078892]
[1765372927299,0.84280184,92260.0,92259.0,0.1078892]
[1765372927491,0.59884,92260.0,92259.0,0.13858552]
[1765372927897,0.5042,92260.0,92259.0,0.13858552]
[1765372928294,0.59884,92260.0,92259.0,0.13858552]
[1765372928503,0.5042,92260.0,92259.0,0.13858552]
[1765372928895,0.55656,92260.0,92259.0,0.13858552]
[1765372929207,0.59814,92260.0,92259.0,0.13858552]
[1765372929601,0.5042,92260.0,92259.0,0.13858552]
[1765372930399,0.55496,92260.0,92259.0,0.13858552]
[1765372931091,0.00108384,92265.0,92264.0,0.1371386]
[1765372931298,0.00108384,92265.0,92264.0,0.16783492]
[1765372931796,3.84e-06,92265.0,92264.0,0.57880346]
[1765372932103,3.84e-06,92265.0,92264.0,0.16783492]
[1765372932296,3.84e-06,92265.0,92264.0,0.56783492]
[1765372932495,3.84e-06,92265.0,92264.0,0.16783492]
[1765372933598,0.08935384,92265.0,92264.0,0.22788232]
[1765372933806,0.08935384,92265.0,92264.0,0.20853909]
[1765372934109,0.08935384,92265.0,92264.0,0.16983492]
[1765372934407,0.08935384,92265.0,92264.0,0.12301492]
[1765372934408,0.08793384,92265.0,92264.0,0.12301492]
[1765372934608,0.08793384,92265.0,92264.0,0.48381492]
[1765372934805,0.08793384,92265.0,92264.0,0.53205492]
[1765372935406,0.08793384,92265.0,92264.0,0.15741632]
[1765372935593,0.08793384,92265.0,92264.0,0.16041632]
[1765372936509,0.08793384,92265.0,92264.0,0.15841632]
[1765372936704,3.84e-06,92265.0,92264.0,0.06294632]
[1765372937600,3.84e-06,92265.0,92264.0,0.10065049]
[1765372938204,0.08296384,92265.0,92264.0,0.15088049]
[1765372938411,0.08296384,92265.0,92264.0,0.15741632]
[1765372939611,0.08296384,92265.0,92264.0,0.19618266]
[1765372939814,3.84e-06,92265.0,92264.0,0.10071266]
[1765372940401,3.84e-06,92265.0,92264.0,0.06194632]
[1765372941010,0.04406384,92265.0,92264.0,0.15741632]
[1765372941310,3.84e-06,92265.0,92264.0,0.06194632]
[1765372942511,3.84e-06,92265.0,92264.0,0.06094632]
[1765372942701,3.84e-06,92265.0,92264.0,0.06194632]
[1765372943209,3.84e-06,92265.0,92264.0,0.06094632]
[1765372943505,3.84e-06,92265.0,92264.0,0.06194632]
[1765372945316,3.84e-06,92265.0,92264.0,0.10718632]
[1765372945517,3.84e-06,92265.0,92264.0,0.06194632]
[1765372947209,3.84e-06,92265.0,92264.0,0.46194632]
[1765372947716,0.00108355,92290.0,92285.0,0.04183]
[1765372947909,0.00108355,92290.0,92285.0,0.53014605]
[1765372948311,0.00108355,92290.0,92285.0,0.49141252]
[1765372948512,0.03827672,92286.0,92285.0,0.49141252]
[1765372948715,0.06797672,92286.0,92285.0,0.49141252]
[1765372949217,0.03827672,92286.0,92285.0,0.49141252]
[1765372949414,0.06797672,92286.0,92285.0,0.49141252]
[1765372950321,0.06797672,92286.0,92285.0,0.53011657]
[1765372950513,0.06797672,92286.0,92285.0,0.43020037]
[1765372950822,0.06797672,92286.0,92285.0,0.39149632]
[1765372951023,0.06797672,92286.0,92285.0,0.03069632]
[1765372951414,0.0754671,92277.0,92276.0,0.02919501]
[1765372951614,0.0754671,92277.0,92276.0,0.03125859]
[1765372951823,0.0754671,92277.0,92276.0,0.13117579]
[1765372952120,0.0754671,92277.0,92276.0,0.14937098]
[1765372952429,0.0754671,92277.0,92276.0,0.03125859]
[1765372952633,0.0754671,92277.0,92276.0,0.00016262]
[1765372952833,0.0627,92267.0,92266.0,0.02903239]
[1765372953038,0.0735393,92258.0,92257.0,0.02903239]
[1765372953240,0.0735393,92258.0,92257.0,0.11977515]
[1765372954638,0.0735393,92258.0,92257.0,0.03069515]
[1765372955236,0.0735393,92258.0,92257.0,0.07794515]
[1765372955441,0.0735393,92258.0,92257.0,0.11977515]
[1765372956137,0.0735393,92258.0,92257.0,0.14880754]
[1765372956138,0.0627,92258.0,92257.0,0.14880754]
[1765372956332,0.0693891,92261.0,92260.0,0.08908]
[1765372956541,0.0693891,92261.0,92260.0,0.07794515]
[1765372956935,0.0693891,92261.0,92260.0,0.11977515]
[1765372957131,0.0693891,92261.0,92260.0,0.07794515]
[1765372957437,0.0693891,92261.0,92260.0,0.11977515]
[1765372957842,0.0693891,92261.0,92260.0,0.03069515]
[1765372958438,0.0693891,92261.0,92260.0,0.11977515]
[1765372959234,0.0703891,92261.0,92260.0,0.11977515]
[1765372961039,0.0703891,92261.0,92260.0,0.11980405]
[1765372962631,0.0703891,92261.0,92260.0,0.14888812]
[1765372963238,0.0703891,92261.0,92260.0,0.03072405]
[1765372963626,0.0703891,92261.0,92260.0,0.11980405]
[1765372964337,0.0703891,92261.0,92260.0,0.07797405]
[1765372964538,0.0703891,92261.0,92260.0,0.03072405]
[1765372965938,0.0703891,92261.0,92260.0,0.11980405]
[1765372966434,0.0703891,92261.0,92260.0,0.03072405]
[1765372966742,0.0703891,92261.0,92260.0,0.11980405]
[1765372968239,0.0703891,92261.0,92260.0,0.10412405]
[1765372969344,0.0703891,92261.0,92260.0,0.14595405]
[1765372970527,0.0118391,92261.0,92260.0,0.14595405]
[1765372974545,0.0356191,92261.0,92260.0,0.14595405]
[1765372974734,0.0404491,92261.0,92260.0,0.14595405]
[1765372974933,0.0512882,92261.0,92260.0,0.14595405]
[1765372975136,0.0512882,92261.0,92260.0,0.05687405]
[1765372975338,0.0512882,92261.0,92260.0,0.03072405]
[1765372975952,0.0512882,92261.0,92260.0,0.05687405]
[1765372977036,0.0512882,92261.0,92260.0,0.14595405]
[1765372978839,0.0512882,92261.0,92260.0,0.17503812]
[1765372979239,0.0512882,92261.0,92260.0,0.14595405]
[1765372981551,0.0512882,92261.0,92260.0,0.18479455]
[1765372981944,0.0512882,92261.0,92260.0,0.14595405]
[1765372982350,0.0512882,92261.0,92260.0,0.09575261]
[1765372982855,0.0512882,92261.0,92260.0,0.17288261]
[1765372984942,0.5553282,92261.0,92260.0,0.09575261]
[1765372985147,0.5553282,92261.0,92250.0,0.0581003]
[1765372985148,0.04167,92252.0,92250.0,0.0581003]
[1765372985348,0.0761304,92249.0,92248.0,0.00016262]
[1765372985555,0.4369304,92249.0,92248.0,0.00016262]
[1765372985753,0.4369304,92249.0,92240.0,0.00108413]
[1765372985754,0.0761313,92241.0,92240.0,0.00108413]
[1765372985955,0.9409713,92241.0,92240.0,0.00108413]
[1765372986464,0.9409713,92241.0,92232.0,0.0228]
[1765372986465,0.075622,92235.0,92232.0,0.0228]
[1765372986656,0.075622,92235.0,92225.0,0.0228]
[1765372986844,0.0750531,92226.0,92225.0,0.02296262]
[1765372987048,0.0750547,92212.0,92211.0,0.09993]
[1765372987248,0.5792947,92212.0,92211.0,0.09993]
[1765372987659,0.0744156,92205.0,92204.0,0.09993]
[1765372987849,0.07450879,92205.0,92204.0,0.09993]
[1765372988246,0.43530879,92205.0,92204.0,0.09993]
[1765372989958,9.319e-05,92205.0,92204.0,0.10393]
[1765372990950,9.319e-05,92205.0,92204.0,0.10793]
[1765372991453,0.03274319,92205.0,92204.0,0.10793]
[1765372991650,9.319e-05,92205.0,92204.0,0.10793]
[1765372992864,0.03215319,92205.0,92204.0,0.10793]
[1765372993763,0.05802319,92205.0,92204.0,0.10793]
[1765372993959,0.06886879,92205.0,92204.0,0.10793]
[1765372994960,0.05802319,92205.0,92204.0,0.1187757]
[1765372996666,0.05802319,92205.0,92204.0,0.10793]
[1765373000672,9.319e-05,92205.0,92204.0,0.10793]
[1765373000861,0.02689319,92205.0,92204.0,0.10793]
[1765373001062,0.04921319,92205.0,92204.0,0.10793]
[1765373003365,0.02689319,92205.0,92204.0,0.10793]
[1765373003566,0.04773319,92205.0,92204.0,0.10793]
[1765373005375,0.03793319,92205.0,92204.0,0.10793]
[1765373008271,0.03793319,92205.0,92204.0,0.0308]
[1765373008470,0.03793319,92205.0,92197.0,0.0228]
[1765373008471,0.0355864,92198.0,92197.0,0.10307]
[1765373008684,0.9005864,92198.0,92197.0,0.10307]
[1765373008973,0.9005864,92198.0,92184.0,0.034288]
[1765373009275,0.07034,92196.0,92195.0,0.08043262]
[1765373010575,0.07034,92196.0,92195.0,0.08343262]
[1765373011278,0.07034,92196.0,92195.0,0.00316262]
[1765373011473,0.07034,92196.0,92195.0,0.08343262]
[1765373011775,0.07034,92196.0,92195.0,0.08543262]
[1765373013166,0.8758464,92198.0,92184.0,0.10371]
[1765373013167,0.0885879,92185.0,92184.0,0.10371]
[1765373013375,0.5928279,92185.0,92184.0,0.02977714]
[1765373013581,0.5928279,92185.0,92184.0,0.13435714]
[1765373015278,0.5544379,92185.0,92184.0,0.13435714]
[1765373015480,0.5574379,92185.0,92184.0,0.13435714]
[1765373015878,0.5977179,92185.0,92184.0,0.13435714]
[1765373016783,0.5594379,92185.0,92184.0,0.13435714]
[1765373019581,0.5972179,92185.0,92184.0,0.13435714]
[1765373022679,0.54859,92185.0,92184.0,0.13435714]
[1765373023177,0.50924,92185.0,92184.0,0.13435714]
[1765373024181,0.50924,92185.0,92184.0,0.17306506]
[1765373024385,0.005,92185.0,92184.0,0.19245744]
[1765373024586,0.5092,92185.0,92184.0,0.19245744]
[1765373025885,0.005,92185.0,92184.0,0.13435714]
[1765373026080,0.004,92185.0,92184.0,0.13435714]
[1765373026801,0.002,92185.0,92184.0,0.13435714]
[1765373027297,0.003,92185.0,92184.0,0.13435714]
[1765373027476,0.001,92185.0,92184.0,0.13435714]
[1765373027679,0.003,92185.0,92184.0,0.13435714]
[1765373028191,0.002,92185.0,92184.0,0.13435714]